[Event "II Llinars Open 2022"]
[Site "Llinars del Valles"]
[Date "2022.07.02"]
[Round "8.3"]
[White "Jimenez Ruano, Adrian"]
[Black "Valenzuela Gomez, Fernando"]
[Result "1/2-1/2"]
[ECO "D32"]
[WhiteElo "2263"]
[BlackElo "2373"]
[Annotator "ChessBase"]
[PlyCount "134"]
[EventDate "2022.06.24"]
[EventType "swiss"]
[EventCountry "ESP"]
[SourceTitle "playchess.com"]
[Source "ChessBase"]
[SourceQuality "1"]
[TimeControl "5400+30"]

1. d4 {[%emt 0:00:01]} d5 {[%emt 0:00:06]} 2. Nf3 {[%emt 0:03:11]} Nf6 {[%emt 0:00:07]} 3. e3 {[%emt 0:00:51]} c5 {[%emt 0:01:32]} 4. dxc5 {[%emt 0:03:49]} e6 {[%emt 0:00:33]} 5. c4 {[%emt 0:00:35]} Bxc5 {[%emt 0:01:42]} 6. Nc3 {[%emt 0:00:30]} O-O {[%emt 0:00:44]} 7. cxd5 {[%emt 0:03:54]} exd5 {[%emt 0:00:26]} 8. Be2 {[%emt 0:00:21]} Nc6 {[%emt 0:00:26]} 9. O-O {[%emt 0:00:05]} Re8 {[%emt 0:01:50]} 10. a3 {[%emt 0:05:31]} a5 {[%emt 0:08:05]} 11. Nb5 {[%emt 0:02:47]} Ne4 {[%emt 0:02:19]} 12. Nfd4 {[%emt 0:04:24]} Bb6 {[%emt 0:02:06]} 13. b3 {[%emt 0:26:30]} Nxd4 {[%emt 0:12:31]} 14. exd4 {[%emt 0:00:01]} Bd7 {[%emt 0:07:21]} 15. Be3 {[%emt 0:17:32]} Re6 {[%emt 0:07:05]} 16. Rc1 {[%emt 0:04:04]} Rg6 {[%emt 0:16:51]} 17. Kh1 {[%emt 0:01:14]} Qe7 {[%emt 0:06:00]} 18. a4 {[%emt 0:01:50]} Rc6 {[%emt 0:05:03]} 19. Bd3 {[%emt 0:07:00]} Rac8 {[%emt 0:01:57]} 20. Rxc6 {[%emt 0:00:43]} bxc6 {[%emt 0:05:21]} 21. Bxe4 {[%emt 0:00:05]} dxe4 {[%emt 0:00:19]} 22. Nc3 {[%emt 0:00:06]} Bc7 {[%emt 0:00:55]} 23. Re1 {[%emt 0:11:04]} Qd6 {[%emt 0:02:55]} 24. g3 {[%emt 0:00:38]} Qg6 {[%emt 0:00:08]} 25. f3 {[%emt 0:02:24]} exf3 {[%emt 0:00:06]} 26. Qxf3 {[%emt 0:00:07]} Qd3 {[%emt 0:01:14]} 27. Ne4 {[%emt 0:01:21]} Bb6 {[%emt 0:07:59]} 28. Nd6 {[%emt 0:01:27]} Rf8 {[%emt 0:00:39]} 29. Nc4 {[%emt 0:01:54]} Bc7 {[%emt 0:00:40]} 30. Qd1 {[%emt 0:00:31]} Qe4+ {[%emt 0:01:10]} 31. Kg1 {[%emt 0:00:01]} Bh3 {[%emt 0:00:31]} 32. Qe2 {[%emt 0:01:25]} Re8 {[%emt 0:02:39]} 33. Nd2 {[%emt 0:00:01]} Qd5 {[%emt 0:00:46]} 34. Qf3 {[%emt 0:00:27]} Qd7 {[%emt 0:00:46]} 35. Ne4 {[%emt 0:00:48]} Qd5 {[%emt 0:02:56]} 36. Bf2 {[%emt 0:00:38]} Be6 {[%emt 0:00:37]} 37. Kg2 {[%emt 0:00:38]} Rb8 {[%emt 0:01:02]} 38. Nd2 {[%emt 0:00:29]} Qxf3+ {[%emt 0:00:54]} 39. Kxf3 {[%emt 0:00:09]} Bd6 {[%emt 0:00:56]} 40. Re3 {[%emt 0:00:19]} h5 {[%emt 0:00:14]} 41. Ke2 {[%emt 0:00:33]} Bd5 {[%emt 0:00:45]} 42. Be1 {[%emt 0:00:07]} Bb4 {[%emt 0:00:19]} 43. Nc4 {[%emt 0:00:42]} Bxc4+ {[%emt 0:00:32]} 44. bxc4 {[%emt 0:00:01]} Bxe1 {[%emt 0:00:09]} 45. Kxe1 {[%emt 0:00:00]} Rb4 {[%emt 0:00:16]} 46. d5 {[%emt 0:00:37]} cxd5 {[%emt 0:00:37]} 47. cxd5 {[%emt 0:00:24]} Rxa4 {[%emt 0:00:35]} 48. d6 {[%emt 0:00:49]} Rd4 {[%emt 0:00:14]} 49. Ra3 {[%emt 0:00:18]} g6 {[%emt 0:01:15]} 50. Rxa5 {[%emt 0:00:08]} Rxd6 {[%emt 0:00:02]} 51. Ke2 {[%emt 0:01:00]} Rf6 {[%emt 0:00:07]} 52. h4 {[%emt 0:01:24]} Kg7 {[%emt 0:00:11]} 53. Ra8 {[%emt 0:00:31]} Rf5 {[%emt 0:00:36]} 54. Ra6 {[%emt 0:00:14]} Rf6 {[%emt 0:00:47]} 55. Ra8 {[%emt 0:00:08]} Rb6 {[%emt 0:00:31]} 56. Ra7 {[%emt 0:00:55]} Kf6 {[%emt 0:00:40]} 57. Kf3 {[%emt 0:00:17]} Rb3+ {[%emt 0:00:05]} 58. Kf4 {[%emt 0:00:32]} Rb4+ {[%emt 0:00:16]} 59. Kf3 {[%emt 0:00:10]} Rd4 {[%emt 0:00:15]} 60. Ke3 {[%emt 0:00:30]} Rd6 {[%emt 0:00:05]} 61. Kf4 {[%emt 0:00:19]} Rd1 {[%emt 0:00:16]} 62. Ra6+ {[%emt 0:00:20]} Ke7 {[%emt 0:00:03]} 63. Ra7+ {[%emt 0:00:24]} Ke6 {[%emt 0:00:08]} 64. Ra6+ {[%emt 0:00:15]} Rd6 {[%emt 0:00:08]} 65. Ra4 {[%emt 0:00:24]} f6 {[%emt 0:00:05]} 66. Re4+ {[%emt 0:01:38]} Kd7 {[%emt 0:00:04]} 67. Ra4 {[%emt 0:00:19]} Ke6 {[%emt 0:00:25]} 1/2-1/2

[Event "II Llinars Open 2022"]
[Site "Llinars del Valles"]
[Date "2022.07.02"]
[Round "8.4"]
[White "Munoz, Miguel"]
[Black "Serrano Batova, Vicent"]
[Result "1-0"]
[ECO "B20"]
[WhiteElo "2421"]
[BlackElo "1992"]
[Annotator "TA"]
[PlyCount "47"]
[EventDate "2022.06.24"]
[EventType "swiss"]
[EventCountry "ESP"]
[SourceTitle "playchess.com"]
[Source "ChessBase"]
[SourceQuality "1"]
[TimeControl "5400+30"]

{[%evp 9,47,0,3,0,-8,-7,8,-6,5,4,3,3,72,78,69,69,61,50,62,46,45,38,71,55,114,117,95,96,133,116,121,84,108,107,141,125,235,231,356,347]} 1. e4 {[%emt 0:40:22]} c5 {[%emt 0:00:08]} 2. g3 {[%emt 0:00:07]} Nc6 {[%emt 0:00:47]} 3. Bg2 {[%emt 0:00:07]} g6 {[%emt 0:00:16]} 4. Ne2 {[%emt 0:00:06]} Bg7 {[%emt 0:00:10]} 5. c3 {[%emt 0:00:07]} e5 {[%emt 0:01:00]} 6. d3 {[%emt 0:00:07] B20: Sicilian: Unusual White 2nd moves.} h5 {[%emt 0:03:29]} 7. h3 {[%emt 0:00:28]} d6 {[%emt 0:05:14]} 8. Be3 {[%emt 0:00:12] [#] The position is equal.} Be6 $146 {[%emt 0:24:56]} ({Predecessor:} 8... Nge7 9. O-O O-O 10. Na3 Be6 11. d4 exd4 12. cxd4 d5 13. e5 cxd4 14. Nxd4 Nxe5 15. Nxe6 fxe6 {1-0 (34) Valderrama Quiceno,E (2374)-Kantans,T (2514) Chess.com INT 2015}) 9. d4 {[%emt 0:06:40]} exd4 {[%emt 0:01:16]} 10. cxd4 {[%emt 0:00:09] Black must now prevent d5.} cxd4 {[%emt 0:00:08]} (10... d5 $11) 11. Nxd4 $16 {[%emt 0:00:08]} Nxd4 {[%emt 0:00:06]} 12. Bxd4 {[%emt 0:00:12]} Bxd4 {[%emt 0:00:41]} 13. Qxd4 {[%emt 0:00:15]} Qf6 {[%emt 0:00:03]} 14. Qd2 {[%emt 0:07:08]} Ne7 {[%emt 0:04:42]} 15. f4 {[%emt 0:07:32]} O-O {[%emt 0:00:30]} 16. O-O {[%emt 0:00:30][%cal Bh1f1,Bf1f2,Bf2f5][%mdl 32]} Rfd8 {[%emt 0:11:43]} ({Better is} 16... d5 $14) 17. Nc3 {[%emt 0:08:44]} Rac8 {[%emt 0:08:00]} 18. Rf2 {[%emt 0:00:00]} a6 {[%emt 0:03:41]} 19. f5 {[%emt 0:00:00]} Bc4 {[%emt 0:06:06]} 20. fxg6 {[%emt 0:00:00]} Qxg6 {[%emt 0:00:13]} 21. Kh2 {[%emt 0:00:00]} Kh8 {[%emt 0:04:39]} 22. Rd1 {[%emt 0:00:31]} Nc6 {[%emt 0:01:22] [#]} (22... Qg7 $16 23. e5 h4) 23. Rf5 $1 $18 {[%emt 0:01:04]} Rg8 {[%emt 0:00:41]} (23... f6 {is a better defense.} 24. Bf3 Be6) 24. Qf4 {[%emt 0:00:10] Weighted Error Value: White=0.06 (flawless) /Black=0.29 (precise)} ({Not} 24. Qxd6 Be6 $16) 1-0

[Event "II Llinars Open 2022"]
[Site "Llinars del Valles"]
[Date "2022.07.02"]
[Round "8.5"]
[White "Fanninger, Leon"]
[Black "Parra Ordorica, Gorka"]
[Result "1/2-1/2"]
[ECO "A33"]
[WhiteElo "2157"]
[BlackElo "1777"]
[Annotator "RC"]
[PlyCount "109"]
[EventDate "2022.06.24"]
[EventType "swiss"]
[EventCountry "ESP"]
[SourceTitle "playchess.com"]
[Source "ChessBase"]
[SourceQuality "1"]
[TimeControl "5400+30"]

1. Nf3 {[%emt 0:05:27]} Nf6 {[%emt 0:00:30]} 2. g3 {[%emt 0:00:10]} e6 {[%emt 0:00:49]} 3. Bg2 {[%emt 0:00:12]} c5 {[%emt 0:00:21]} 4. O-O {[%emt 0:00:56]} Nc6 {[%emt 0:00:47]} 5. d4 {[%emt 0:01:39]} cxd4 {[%emt 0:04:36]} 6. Nxd4 {[%emt 0:00:13]} a6 {[%emt 0:04:43]} 7. c4 {[%emt 0:00:35]} Qc7 {[%emt 0:01:50]} 8. b3 {[%emt 0:13:25]} d6 {[%emt 0:01:48]} 9. Bb2 {[%emt 0:00:41]} Be7 {[%emt 0:00:14]} 10. Nc3 {[%emt 0:00:16]} Bd7 {[%emt 0:01:20]} 11. Rc1 {[%emt 0:00:31]} O-O {[%emt 0:01:22]} 12. Qd2 {[%emt 0:05:29]} Rac8 {[%emt 0:04:08]} 13. e4 {[%emt 0:17:33]} Rfd8 {[%emt 0:02:54]} 14. h3 {[%emt 0:07:52]} Qb8 {[%emt 0:06:23]} 15. a4 {[%emt 0:02:41]} Be8 {[%emt 0:08:13]} 16. Rfd1 {[%emt 0:14:28]} Nd7 {[%emt 0:02:12]} 17. Rb1 {[%emt 0:03:39]} Nc5 {[%emt 0:04:19]} 18. Ba1 {[%emt 0:01:01]} Bf6 {[%emt 0:02:18]} 19. Nce2 {[%emt 0:01:49]} Nxd4 {[%emt 0:19:25]} 20. Nxd4 {[%emt 0:01:22]} b5 {[%emt 0:00:14]} 21. axb5 {[%emt 0:01:40]} axb5 {[%emt 0:00:06]} 22. g4 {[%emt 0:02:07]} Bxd4 {[%emt 0:11:12]} 23. Bxd4 {[%emt 0:01:02]} e5 {[%emt 0:00:21]} 24. Be3 {[%emt 0:01:38]} bxc4 {[%emt 0:01:46]} 25. bxc4 {[%emt 0:00:01]} Qc7 {[%emt 0:05:23]} 26. Bxc5 {[%emt 0:03:15]} dxc5 {[%emt 0:00:00]} 27. Qe3 {[%emt 0:05:07]} Rd4 {[%emt 0:00:00]} 28. Bf1 {[%emt 0:00:49]} Rcd8 {[%emt 0:01:22]} 29. Be2 {[%emt 0:00:44]} Bc6 {[%emt 0:00:00]} 30. f3 {[%emt 0:00:08]} Rxd1+ {[%emt 0:00:16]} 31. Rxd1 {[%emt 0:00:13]} Rd4 {[%emt 0:03:20]} 32. Ra1 {[%emt 0:01:28]} g6 {[%emt 0:04:28]} 33. Qa3 {[%emt 0:01:28]} Qd6 {[%emt 0:01:12]} 34. Rb1 {[%emt 0:01:16]} Kg7 {[%emt 0:04:55]} 35. Kf2 {[%emt 0:00:42]} Rd2 {[%emt 0:01:05]} 36. Qe3 {[%emt 0:00:53]} Ba4 {[%emt 0:01:58]} 37. Ke1 {[%emt 0:03:08]} Ra2 38. Rc1 {[%emt 0:04:01]} Qd4 {[%emt 0:00:10]} 39. Rc3 {[%emt 0:00:00]} Ra1+ {[%emt 0:02:46]} 40. Kf2 {[%emt 0:00:38]} Bd1 {[%emt 0:01:02]} 41. Rd3 {[%emt 0:00:18]} Qxe3+ {[%emt 0:00:18]} 42. Kxe3 {[%emt 0:00:18]} Bxe2 {[%emt 0:00:25]} 43. Kxe2 {[%emt 0:00:00]} Rc1 44. Rd5 {[%emt 0:00:04]} Rxc4 {[%emt 0:01:06]} 45. Rxe5 {[%emt 0:00:00]} Kf6 {[%emt 0:00:47]} 46. Rd5 {[%emt 0:00:00]} Ke6 {[%emt 0:00:16]} 47. Rd8 {[%emt 0:00:00]} Kf6 {[%emt 0:00:47]} 48. Rh8 {[%emt 0:00:00]} Kg7 {[%emt 0:00:27]} 49. Rc8 {[%emt 0:00:00]} Rc3 {[%emt 0:00:26]} 50. h4 {[%emt 0:00:00]} h6 {[%emt 0:00:31]} 51. g5 {[%emt 0:00:00]} h5 {[%emt 0:00:32]} 52. f4 {[%emt 0:01:52]} Rh3 {[%emt 0:00:32]} 53. Rxc5 {[%emt 0:00:03]} Rxh4 {[%emt 0:00:08]} 54. Kf3 {[%emt 0:00:43]} Rh3+ {[%emt 0:00:04]} 55. Kf2 {[%emt 0:00:58]} 1/2-1/2

[Event "II Llinars Open 2022"]
[Site "Llinars del Valles"]
[Date "2022.07.02"]
[Round "8.6"]
[White "Casares Bonals, Asier"]
[Black "Diaz Perez, Michel Alejandro"]
[Result "1/2-1/2"]
[ECO "B52"]
[WhiteElo "1741"]
[BlackElo "2439"]
[Annotator "TA"]
[PlyCount "57"]
[EventDate "2022.06.24"]
[EventType "swiss"]
[EventCountry "ESP"]
[SourceTitle "playchess.com"]
[Source "ChessBase"]
[SourceQuality "1"]
[TimeControl "5400+30"]

{[%evp 16,57,20,18,29,-24,9,-16,-11,-81,45,40,33,23,50,52,50,56,143,156,154,0,0,0,0,0,7,8,10,10,8,0,48,48,48,29,29,29,29,29,29,29,29,29]} 1. e4 {[%emt 0:01:46]} c5 {[%emt 0:01:51]} 2. Nf3 {[%emt 0:00:00]} d6 {[%emt 0:00:09]} 3. Bb5+ {[%emt 0:00:00]} Bd7 {[%emt 0:00:06]} 4. Bxd7+ {[%emt 0:00:00]} Nxd7 {[%emt 0:00:08]} 5. c4 {[%emt 0:00:38]} Ngf6 {[%emt 0:03:56]} 6. Nc3 {[%emt 0:00:41]} g6 {[%emt 0:01:13]} 7. d4 {[%emt 0:03:20]} cxd4 {[%emt 0:01:50]} 8. Nxd4 {[%emt 0:00:10]} Bg7 {[%emt 0:01:31]} 9. O-O {[%emt 0:05:15]} O-O {[%emt 0:01:44] B52: Sicilian: Moscow Variation with 3...Bd7.} 10. h3 {[%emt 0:14:12]} (10. b3 $142) 10... a6 {[%emt 0:02:21]} 11. Be3 {[%emt 0:12:55]} Rc8 {[%emt 0:02:01] The position is equal.} 12. b3 {[%emt 0:14:38] [#]} (12. Qb3 $11 {remains equal.}) 12... Nc5 $146 {[%emt 0:04:43]} ({Black should play} 12... b5 $1 $17) ({Predecessor:} 12... b5 13. Rc1 bxc4 14. bxc4 Ne5 15. Bg5 Nxc4 16. Bxf6 Bxf6 17. Nd5 e6 18. Nxf6+ Qxf6 {0-1 (65) Goryachkina,A (2610)-Gupta,A (2628) Chess.com INT 2022}) 13. f3 $14 {[%emt 0:01:22]} e6 {[%emt 0:09:31]} 14. Rc1 {[%emt 0:08:33]} h6 {[%emt 0:20:10]} 15. Qd2 {[%emt 0:02:25]} Kh7 {[%emt 0:00:03]} 16. Rfd1 {[%emt 0:03:17]} d5 {[%emt 0:19:26]} (16... Qa5 $14) 17. cxd5 {[%emt 0:04:10]} exd5 {[%emt 0:00:04]} 18. exd5 {[%emt 0:02:14] [#]} (18. Nde2 $16) 18... Nxd5 $11 {[%emt 0:00:47]} 19. Nxd5 {[%emt 0:04:14]} Qxd5 {[%emt 0:00:04]} 20. Ne2 {[%emt 0:01:09]} Qxd2 {[%emt 0:02:57]} 21. Rxd2 {[%emt 0:00:42]} Ne6 {[%emt 0:00:17]} 22. Rxc8 {[%emt 0:07:18]} Rxc8 {[%emt 0:00:04]} 23. Nf4 {[%emt 0:04:07]} Rd8 {[%emt 0:18:28]} (23... Nxf4 $11 {feels stronger.} 24. Bxf4 g5) 24. Nxe6 $14 {[%emt 0:01:58]} Rxd2 {[%emt 0:00:04]} 25. Bxd2 {[%emt 0:00:05]} fxe6 {[%emt 0:00:03] White has an edge.} 26. Kf2 {[%emt 0:00:24]} Kg8 {[%emt 0:03:14]} 27. Ke3 {[%emt 0:00:30]} Kf7 {[%emt 0:00:08]} 28. Kd3 {[%emt 0:00:53]} Ke7 {[%emt 0:01:43]} 29. Bb4+ {[%emt 0:03:03] Weighted Error Value: White=0.23 (precise) /Black=0.28 (precise)} 1/2-1/2

[Event "II Llinars Open 2022"]
[Site "Llinars del Valles"]
[Date "2022.07.02"]
[Round "8.7"]
[White "Prats Safont, Sergi"]
[Black "Juan Mas, Santiago"]
[Result "1-0"]
[ECO "B07"]
[WhiteElo "2206"]
[BlackElo "1889"]
[Annotator "RC"]
[PlyCount "68"]
[EventDate "2022.06.24"]
[EventType "swiss"]
[EventCountry "ESP"]
[SourceTitle "playchess.com"]
[Source "ChessBase"]
[SourceQuality "1"]
[TimeControl "5400+30"]

1. e4 {[%emt 0:00:02]} d6 {[%emt 0:01:19]} 2. d4 {[%emt 0:00:22]} Nf6 {[%emt 0:00:07]} 3. Nc3 {[%emt 0:00:15]} c6 {[%emt 0:00:06]} 4. Be3 {[%emt 0:02:53]} Qa5 {[%emt 0:01:30]} 5. f3 {[%emt 0:04:34]} e5 {[%emt 0:00:40]} 6. Nge2 {[%emt 0:00:54]} Be7 {[%emt 0:03:23]} 7. Qd2 {[%emt 0:01:44]} O-O {[%emt 0:01:51]} 8. g4 {[%emt 0:01:14]} b5 {[%emt 0:00:26]} 9. Ng3 {[%emt 0:00:22]} exd4 {[%emt 0:17:50]} 10. Bxd4 {[%emt 0:00:32]} b4 {[%emt 0:03:01]} 11. Nd1 {[%emt 0:04:00]} c5 {[%emt 0:07:39]} 12. Bxf6 {[%emt 0:07:58]} Bxf6 {[%emt 0:00:02]} 13. g5 {[%emt 0:00:30]} Be7 {[%emt 0:06:24]} 14. h4 {[%emt 0:00:45]} d5 {[%emt 0:08:23]} 15. Ne3 {[%emt 0:16:12]} dxe4 {[%emt 0:11:35]} 16. fxe4 {[%emt 0:14:08]} Rd8 {[%emt 0:02:41]} 17. Nd5 {[%emt 0:00:25]} Bd6 {[%emt 0:03:03]} 18. Nh5 {[%emt 0:11:19]} Be6 {[%emt 0:07:21]} 19. Bc4 {[%emt 0:05:40]} Nd7 {[%emt 0:12:40]} 20. O-O-O {[%emt 0:02:00]} Ne5 {[%emt 0:01:17]} 21. Qe2 {[%emt 0:00:40]} Nxc4 {[%emt 0:03:45]} 22. Qxc4 {[%emt 0:00:06]} b3 {[%emt 0:00:37]} 23. cxb3 {[%emt 0:14:31]} Rab8 {[%emt 0:03:58]} 24. Qc3 {[%emt 0:00:40]} Qxc3+ {[%emt 0:00:30]} 25. bxc3 {[%emt 0:00:07]} Kf8 {[%emt 0:00:32]} 26. Rhg1 {[%emt 0:00:23]} a5 {[%emt 0:00:37]} 27. Nhf4 {[%emt 0:01:24]} Bc8 {[%emt 0:00:57]} 28. h5 {[%emt 0:01:22]} a4 {[%emt 0:00:18]} 29. Kc2 {[%emt 0:00:42]} axb3+ {[%emt 0:00:15]} 30. axb3 {[%emt 0:00:04]} Bb7 {[%emt 0:00:28]} 31. Rgf1 {[%emt 0:00:22]} Bxf4 {[%emt 0:01:09]} 32. Rxf4 {[%emt 0:00:10]} Re8 {[%emt 0:00:26]} 33. c4 {[%emt 0:02:49]} Re5 {[%emt 0:01:00]} 34. g6 {[%emt 0:01:05]} h6 {[%emt 0:00:41]} 1-0

[Event "II Llinars Open 2022"]
[Site "Llinars del Valles"]
[Date "2022.07.02"]
[Round "8.8"]
[White "Sanchez Aguilar, Arnau"]
[Black "Jove Albaiges, Guillem"]
[Result "1-0"]
[ECO "B22"]
[WhiteElo "2028"]
[BlackElo "1876"]
[Annotator "NA RC"]
[PlyCount "105"]
[EventDate "2022.06.24"]
[EventType "swiss"]
[EventCountry "ESP"]
[SourceTitle "playchess.com"]
[Source "ChessBase"]
[SourceQuality "1"]
[TimeControl "5400+30"]

1. e4 {[%emt 0:00:15]} c5 {[%emt 0:00:10]} 2. c3 {[%emt 0:00:37]} d5 {[%emt 0:00:33]} 3. exd5 {[%emt 0:00:46]} Qxd5 {[%emt 0:00:07]} 4. d4 {[%emt 0:00:32]} cxd4 {[%emt 0:00:42]} 5. cxd4 {[%emt 0:00:19]} e5 {[%emt 0:00:49]} 6. Nf3 {[%emt 0:01:16]} Nc6 {[%emt 0:00:38]} 7. Nc3 {[%emt 0:03:10]} Bb4 {[%emt 0:00:52]} 8. Be3 {[%emt 0:06:27]} e4 {[%emt 0:07:26]} 9. Nd2 {[%emt 0:00:19]} Bxc3 {[%emt 0:01:25]} 10. bxc3 {[%emt 0:00:08]} Nf6 {[%emt 0:02:00]} 11. Bc4 {[%emt 0:03:58]} Qf5 {[%emt 0:01:13]} 12. f3 {[%emt 0:04:16]} exf3 {[%emt 0:07:55]} 13. Qxf3 {[%emt 0:05:25]} O-O {[%emt 0:13:03]} 14. O-O {[%emt 0:01:07]} Qg6 {[%emt 0:13:49]} 15. h3 {[%emt 0:04:13]} Bd7 {[%emt 0:15:55]} 16. Bf4 {[%emt 0:05:49]} Na5 {[%emt 0:13:37]} 17. Bd6 {[%emt 0:13:00]} Rfc8 {[%emt 0:04:29]} 18. Bd3 {[%emt 0:00:47]} Qg5 {[%emt 0:00:25]} 19. Ne4 {[%emt 0:04:39]} Nxe4 {[%emt 0:03:14]} 20. Qxf7+ {[%emt 0:01:44]} Kh8 {[%emt 0:00:40]} 21. Bxe4 {[%emt 0:00:13]} Qe3+ {[%emt 0:03:02]} 22. Kh2 {[%emt 0:00:15]} Qxe4 {[%emt 0:03:10]} 23. Qxd7 {[%emt 0:00:10]} Nc4 {[%emt 0:01:14]} 24. Rf7 {[%emt 0:02:48]} Rd8 {[%emt 0:02:36]} 25. Raf1 {[%emt 0:00:05]} Qd5 {[%emt 0:01:48]} 26. Qxd8+ {[%emt 0:00:52]} Rxd8 {[%emt 0:00:01]} 27. Rf8+ {[%emt 0:00:08]} Qg8 {[%emt 0:00:31]} 28. Rxd8 {[%emt 0:02:26]} Qxd8 {[%emt 0:00:20]} 29. Rf8+ {[%emt 0:00:01]} Qxf8 {[%emt 0:00:02]} 30. Bxf8 {[%emt 0:00:03]} Kg8 {[%emt 0:00:22]} 31. Be7 {[%emt 0:01:26]} Kf7 {[%emt 0:00:04]} 32. Bh4 {[%emt 0:00:21]} Ke6 {[%emt 0:00:30]} 33. Kg1 {[%emt 0:00:50]} Kd5 {[%emt 0:01:45]} 34. Kf2 {[%emt 0:00:11]} Nd6 {[%emt 0:01:00]} 35. Ke2 {[%emt 0:00:31]} Kc4 {[%emt 0:00:42]} 36. Be1 {[%emt 0:00:06]} b5 {[%emt 0:00:41]} 37. Ke3 {[%emt 0:00:23]} a5 {[%emt 0:00:22]} 38. g4 {[%emt 0:02:06]} g6 {[%emt 0:01:38]} 39. Bg3 {[%emt 0:01:11]} Nf7 {[%emt 0:00:31]} 40. Be1 {[%emt 0:01:55]} Kd5 {[%emt 0:00:30]} 41. Kd3 {[%emt 0:01:31]} Nd6 {[%emt 0:00:24]} 42. Bd2 {[%emt 0:01:50]} Ne4 {[%emt 0:00:18]} 43. a4 {[%emt 0:00:20]} Nf2+ {[%emt 0:00:53]} 44. Ke2 {[%emt 0:00:08]} bxa4 {[%emt 0:00:31]} 45. Kxf2 {[%emt 0:00:14]} a3 {[%emt 0:00:06]} 46. Bc1 {[%emt 0:00:05]} a2 {[%emt 0:00:03]} 47. Bb2 {[%emt 0:00:06]} Kc4 {[%emt 0:00:24]} 48. Ba1 {[%emt 0:00:21]} Kb3 {[%emt 0:00:17]} 49. d5 {[%emt 0:00:12]} Kc2 {[%emt 0:00:06]} 50. d6 {[%emt 0:00:04]} Kb1 {[%emt 0:00:03]} 51. d7 {[%emt 0:00:05]} Kxa1 {[%emt 0:00:08]} 52. d8=Q {[%emt 0:00:03]} Kb2 {[%emt 0:00:14]} 53. Qxa5 {[%emt 0:00:02]} 1-0

[Event "II Llinars Open 2022"]
[Site "Llinars del Valles"]
[Date "2022.07.03"]
[Round "9.1"]
[White "Garcia Ramos, Daniel"]
[Black "Munoz, Miguel"]
[Result "0-1"]
[ECO "B32"]
[WhiteElo "2441"]
[BlackElo "2421"]
[Annotator "TA"]
[PlyCount "60"]
[EventDate "2022.06.24"]
[EventType "swiss"]
[EventCountry "ESP"]
[SourceTitle "playchess.com"]
[Source "ChessBase"]
[SourceQuality "1"]
[TimeControl "5400+30"]

{[%evp 14,60,20,28,20,23,29,17,28,29,33,37,34,34,22,29,21,12,14,0,0,0,0,0,0,0,0,-94,-91,-92,-92,-89,-100,-206,-210,-384,-401,-2295,-2281,-2202,-2099,-2004,-1921,-2593,-2483,-29987,-29988,-29992,-29993]} 1. e4 {[%emt 0:00:02]} c5 {[%emt 0:00:08]} 2. Nf3 {[%emt 0:00:08][%cal Bg1f3,Bf3d4,Bd4b5][%mdl 32]} Nc6 {[%emt 0:00:08]} 3. d4 {[%emt 0:00:09]} cxd4 {[%emt 0:00:09]} 4. Nxd4 {[%emt 0:00:05]} e5 {[%emt 0:00:13]} 5. Nb5 {[%emt 0:00:43]} d6 {[%emt 0:00:15]} 6. c4 {[%emt 0:01:09]} Be7 {[%emt 0:00:56] 6...Be6 is the hot move.} 7. Be2 {[%emt 0:01:04]} a6 {[%emt 0:00:44]} 8. N5c3 {[%emt 0:00:07]} Bg5 {[%emt 0:00:50] B32: Sicilian: Löwenthal and Kalashnikov Variations.} 9. Nd2 {[%emt 0:03:18]} Nge7 {[%emt 0:00:36]} 10. O-O {[%emt 0:00:17]} O-O {[%emt 0:01:33] The position is equal.} 11. Nb3 {[%emt 0:09:21]} Bxc1 {[%emt 0:00:32]} 12. Rxc1 {[%emt 0:05:00]} Be6 {[%emt 0:02:37]} 13. Qd2 {[%emt 0:01:06] [#]} Qd7 $146 {[%emt 0:03:50]} ({Predecessor:} 13... Qb8 14. Rfd1 Rd8 15. Nd5 b5 16. c5 Nc8 17. Qg5 h6 18. Qh4 a5 19. cxd6 Rxd6 {1-0 (41) Stanojoski,Z (2434)-Amdouni,Z (2305) Monastir 2012}) 14. Rfd1 {[%emt 0:01:39]} Rad8 {[%emt 0:00:33]} 15. Nd5 {[%emt 0:06:34]} f5 {[%emt 0:04:32]} 16. c5 {[%emt 0:12:26]} (16. f3 {keeps more tension.} fxe4 17. fxe4 Bg4 18. Rf1) 16... fxe4 {[%emt 0:11:55]} 17. Nxe7+ {[%emt 0:01:28]} Qxe7 {[%emt 0:06:15]} 18. cxd6 {[%emt 0:00:11]} Qf6 {[%emt 0:00:13]} 19. Bxa6 {[%emt 0:10:52]} Bg4 {[%emt 0:10:38]} 20. Qd5+ {[%emt 0:15:37]} ({Much worse is} 20. Bxb7 Bxd1 21. Rxc6 (21. Rxd1 $2 Rxd6 22. Rf1 Rxd2 $19) 21... Bxb3 22. axb3 Rf7 $15) (20. Re1 $11 {keeps the balance.}) 20... Kh8 $1 $17 {[%emt 0:01:47][%mdl 1024] Black has strong compensation.} 21. Rd2 {[%emt 0:00:04]} Qg5 {[%emt 0:19:54]} 22. h4 {[%emt 0:07:15]} (22. Bxb7 $2 Bf3 $1 23. g3 e3 $19) 22... Qg6 {[%emt 0:00:33]} 23. Bf1 {[%emt 0:05:52] [#]} ({But not} 23. Bxb7 $2 Bf3 $1 24. g3 e3 $19) (23. Be2 $17 {is the only way for White.} Bh3 24. Bf1) 23... Bf3 $1 $19 {[%emt 0:00:33]} 24. Qb5 $2 {[%emt 0:10:00] [#]} (24. Rdc2 Nb4 25. Qxe5 (25. h5 $2 Bxh5 26. Qd2 Nxc2 $19)) 24... Rf4 $1 {[%emt 0:03:00][%cal Bf8f4,Bf4h4,Bh4h5][%mdl 32]} 25. Rc3 {[%emt 0:02:40]} (25. Rxc6 $142 bxc6 26. Qxe5) 25... Rxh4 {[%emt 0:07:25][%cal Og6h5]} 26. Rxf3 {[%emt 0:00:17]} exf3 {[%emt 0:00:12]} 27. g3 {[%emt 0:00:09]} Rh5 {[%emt 0:02:37] ( -> ...Qh6)} 28. Qd3 {[%emt 0:00:24]} e4 {[%emt 0:00:36]} 29. Qe3 {[%emt 0:00:01]} Ne5 {[%emt 0:00:41]} 30. Qb6 {[%emt 0:06:05]} Rg8 {[%emt 0:01:43] Weighted Error Value: White=0.74/Black=0.01 (flawless)} 0-1